fUSD/lending_fUSD_20260121
["ID","MTS","AMOUNT","RATE_DAILY","PERIOD"]
[402941493,1769001755953,-33998.88983151,0.00047625,120]
[402941494,1769001756027,-168.944,0.00047647,81]
[402941495,1769001756099,-151.0,0.00047891,120]
[402941496,1769001756173,-6773.1269077,0.00047894,60]
[402941497,1769001756258,-4561.25594052,0.00048,120]
[402941498,1769001756338,-200.0,0.0004802,120]
[402941499,1769001756413,-500.0,0.00048452,60]
[402941500,1769001756490,-2340.0,0.000485,120]
[402941501,1769001756570,-200.0,0.0004851,120]
[402941502,1769001756647,-33998.88983151,0.00048732,120]
[402941503,1769001756723,-193.28,0.0004898,120]
[402941504,1769001756799,-211.0,0.0004899,30]
[402941505,1769001756873,-210.0,0.0004899,30]
[402941506,1769001756953,-151.0,0.00048997,120]
[402941507,1769001757031,-381.78676721,0.00048999,120]
[402941508,1769001757110,-151.0,0.00048999,120]
[402941509,1769001757190,-151.0,0.00048999,120]
[402941510,1769001757270,-151.0,0.00048999,120]
[402941511,1769001757350,-151.0,0.00048999,120]
[402941512,1769001757428,-151.0,0.00048999,120]
[402941513,1769001757506,-151.0,0.00048999,120]
[402941514,1769001757583,-151.0,0.00048999,120]
[402941515,1769001757659,-151.0,0.00048999,120]
[402941516,1769001757736,-151.0,0.00048999,120]
[402941517,1769001757810,-151.0,0.00048999,120]
[402941518,1769001757882,-151.0,0.00048999,120]
[402941519,1769001757957,-151.0,0.00048999,120]
[402941520,1769001758033,-151.0,0.00048999,120]
[402941521,1769001758112,-151.0,0.00048999,120]
[402941522,1769001758192,-151.0,0.00048999,120]
[402941523,1769001758272,-151.0,0.00048999,120]
[402941524,1769001758352,-151.0,0.00048999,120]
[402941525,1769001758429,-151.0,0.00048999,120]
[402941526,1769001758508,-151.0,0.00048999,120]
[402941527,1769001758587,-151.0,0.00048999,120]
[402941528,1769001758666,-151.0,0.00048999,120]
[402941529,1769001758744,-201.12765535,0.00048999,120]
[402941530,1769001758822,-151.0,0.00048999,120]
[402941531,1769001758899,-151.0,0.00048999,120]
[402941532,1769001758978,-151.0,0.00048999,120]
[402941533,1769001759054,-151.0,0.00048999,120]
[402941534,1769001759131,-250.0,0.00048999,120]
[402941535,1769001759221,-2567.0,0.00048999,120]
[402941536,1769001759318,-151.0,0.00048999,120]
[402941537,1769001759413,-250.0,0.00048999,120]
[402941538,1769001759493,-2675.43526926,0.00048999,120]
[402941539,1769001759568,-151.0,0.00048999,120]
[402941540,1769001759643,-250.0,0.00048999,120]
[402941541,1769001759717,-151.0,0.00048999,120]
[402941542,1769001759793,-151.0,0.00048999,120]
[402941543,1769001759871,-250.0,0.00048999,120]
[402941544,1769001759947,-156.587,0.00048999,120]
[402941545,1769001760023,-151.0,0.00048999,120]
[402941546,1769001760099,-250.0,0.00048999,120]
[402941547,1769001760174,-162.380719,0.00048999,120]
[402941548,1769001760251,-151.0,0.00048999,120]
[402941549,1769001760328,-250.0,0.00048999,120]
[402941550,1769001760405,-168.3888056,0.00048999,120]
[402941551,1769001760483,-151.0,0.00048999,120]
[402941552,1769001760562,-250.0,0.00048999,120]
[402941553,1769001760638,-239.62621558,0.00048999,120]
[402941554,1769001760715,-151.0,0.00048999,120]
[402941555,1769001760792,-151.0,0.00048999,120]
[402941556,1769001760868,-250.0,0.00048999,120]
[402941557,1769001760948,-250.0,0.00048999,120]
[402941558,1769001761024,-156.587,0.00048999,120]
[402941559,1769001761099,-250.0,0.00048999,120]
[402941560,1769001761178,-250.0,0.00048999,120]
[402941561,1769001761257,-151.0,0.00048999,120]
[402941562,1769001761336,-250.0,0.00048999,120]
[402941563,1769001761411,-162.380719,0.00048999,120]
[402941564,1769001761488,-250.0,0.00048999,120]
[402941565,1769001761572,-250.0,0.00048999,120]
[402941566,1769001761648,-151.0,0.00048999,120]
[402941567,1769001761725,-250.0,0.00048999,120]
[402941568,1769001761803,-168.3888056,0.00048999,120]
[402941569,1769001761876,-250.0,0.00048999,120]
[402941570,1769001761951,-250.0,0.00048999,120]
[402941571,1769001762027,-250.0,0.00048999,120]
[402941572,1769001762103,-174.61919141,0.00048999,120]
[402941573,1769001762176,-250.0,0.00048999,120]
[402941574,1769001762250,-250.0,0.00048999,120]
[402941575,1769001762324,-250.0,0.00048999,120]
[402941576,1769001762397,-181.08010149,0.00048999,120]
[402941577,1769001762471,-250.0,0.00048999,120]
[402941578,1769001762546,-250.0,0.00048999,120]
[402941579,1769001762785,-250.0,0.00048999,120]
[402941580,1769001762866,-282.65723171,0.00048999,120]
[402941581,1769001762942,-250.0,0.00048999,120]
[402941582,1769001763018,-265.25234618,0.00048999,120]
[402941583,1769001763094,-250.0,0.00048999,120]
[402941584,1769001763172,-250.0,0.00048999,120]
[402941585,1769001763245,-460.62223038,0.00048999,120]
[402941586,1769001763319,-250.0,0.00048999,120]
[402941587,1769001763395,-250.0,0.00048999,120]
[402941588,1769001763470,-250.0,0.00048999,120]
[402941589,1769001763551,-250.0,0.00048999,120]
[402941590,1769001763629,-250.0,0.00048999,120]
[402941591,1769001763711,-250.0,0.00048999,120]
[402941592,1769001763790,-250.0,0.00048999,120]
[402941593,1769001763873,-74884.76176409,0.00049,120]
[402941594,1769001763955,-1000000.0,0.00049,120]
[402941595,1769001764033,-170.08,0.00049,90]
[402941596,1769001764114,-151.0,0.00049,120]
[402941597,1769001764194,-4599.6433,0.00049,120]
[402941598,1769001764275,-342.46644168,0.00049,30]
[402941599,1769001764353,-1529.86154668,0.00049,120]
[402941600,1769001764432,-25115.0,0.00049,120]
[402941601,1769001764514,-200.0,0.00049,120]
[402941602,1769001764596,-1000000.0,0.00049,120]
[402941603,1769001764679,-1000000.0,0.00049,120]
[402941604,1769001764756,-797.0,0.00049,120]
[402941605,1769001764832,-268.984661,0.00049,63]
[402941606,1769001764905,-1264.0,0.00049,30]
[402941607,1769001764981,-1264.0,0.00049,30]
[402941608,1769001765055,-1264.0,0.00049,30]
[402941609,1769001765129,-1264.0,0.00049,30]
[402941610,1769001765205,-169.0,0.00049,90]
[402941611,1769001765281,-395.0,0.00049,90]
[402941612,1769001765356,-305.99112338,0.00049,120]
[402941613,1769001765427,-656.65011038,0.00049,120]
[402941614,1769001765501,-251.1,0.00049,120]
[402941615,1769001765579,-612.34,0.00049038,120]
[402941616,1769001765657,-612.34,0.00049138,120]
[402941617,1769001765733,-175.76,0.00049164,30]
[402941618,1769001765810,-183.5,0.00049164,30]
[402941619,1769001765882,-50000.0,0.000492,120]
[402941620,1769001765957,-612.34,0.00049238,120]
[402941621,1769001766030,-1900.54,0.00049315,120]
[402941622,1769001766101,-10000.0,0.00049315,120]
[402941623,1769001766173,-10000.0,0.00049315,120]
[402941624,1769001766246,-10000.0,0.00049315,120]
[402941625,1769001766318,-10000.0,0.00049315,120]
[402941626,1769001766389,-3760.6,0.00049315,120]
[402941627,1769001766463,-900.0,0.00049315,38]
[402941628,1769001766537,-612.34,0.00049338,120]
[402941629,1769001766613,-612.34,0.00049438,120]
[402941630,1769001766686,-2500.0,0.0004944,75]
[402941631,1769001766760,-64871.7099,0.00049444,30]
[402941632,1769001766833,-500.0,0.000495,120]
[402941633,1769001766908,-44871.05131031,0.000495,120]
[402941634,1769001766980,-53000.0,0.000495,33]
[402941635,1769001767055,-485.11235117,0.000495,120]
[402941636,1769001767130,-151.0,0.000495,120]
[402941637,1769001767208,-45424.75083314,0.000495,30]
[402941638,1769001767281,-18667.56646618,0.000495,120]
[402941639,1769001767355,-38638.4358795,0.000495,30]
[402941640,1769001767432,-1000000.0,0.000495,120]
[402941641,1769001767508,-612.34,0.00049538,120]
[402941642,1769001767584,-797.0,0.00049548,120]
[402941643,1769001767659,-500.0,0.00049548,60]
[402941644,1769001767732,-520.42422604,0.00049586,120]
[402941645,1769001767805,-169.0,0.00049589,120]
[402941646,1769001767878,-395.0,0.00049589,120]
[402941647,1769001767952,-2500.0,0.0004963,71]
[402941648,1769001768026,-612.34,0.00049638,120]
[402941649,1769001768101,-3000.0,0.0004969,78]
[402941650,1769001768177,-612.34,0.00049738,120]
[402941651,1769001768252,-1022.8037225,0.0004975,60]
[402941652,1769001768327,-9619.38575177,0.000498,120]
[402941653,1769001768402,-1830.4588732,0.000498,30]
[402941654,1769001768478,-30489.34851,0.000498,120]
[402941655,1769001768553,-868.22057692,0.000498,120]
[402941656,1769001768629,-5118.19749417,0.000498,120]
[402941657,1769001768707,-280.96901018,0.000498,120]
[402941658,1769001768790,-2500.0,0.0004983,79]
[402941659,1769001768873,-2033.0,0.0004983,76]
[402941660,1769001769192,-612.34,0.00049838,120]
[402941661,1769001769286,-33998.88983151,0.00049839,120]
[402941662,1769001769361,-511.0,0.0004985,31]
[402941663,1769001769433,-395.0,0.00049863,120]
[402941664,1769001769511,-896.50089741,0.00049884,120]
[402941665,1769001769595,-2229.53,0.000499,120]
[402941666,1769001769670,-1659.37338263,0.000499,30]
[402941667,1769001769745,-50000.0,0.000499,120]
[402941668,1769001769819,-5000.0,0.000499,120]
[402941669,1769001769896,-40000.0,0.000499,120]
[402941670,1769001769970,-10151.63982434,0.000499,30]
[402941671,1769001770049,-84171.0,0.0004993,120]
[402941672,1769001770135,-612.34,0.00049938,120]
[402941673,1769001770232,-5142.9533145,0.00049973,120]
[402941674,1769001770312,-151.37630148,0.00049978,30]
[402941675,1769001770387,-16416.88254724,0.0004999,120]
[402941676,1769001770465,-1151.8727,0.0004999,120]
[402941677,1769001770542,-983.028123,0.0004999,120]
[402941678,1769001770617,-1039.94311,0.0004999,120]
[402941679,1769001770692,-54285.66728793,0.0004999,120]
[402941680,1769001770773,-1273.63062157,0.0004999,120]
[402941681,1769001770851,-1120.2611,0.0004999,120]
[402941682,1769001770926,-1000.0,0.00049999,120]
[402941683,1769001771003,-10000.0,0.00049999,120]
[402941684,1769001771075,-500.0,0.00049999,120]
[402941685,1769001771154,-500.0,0.00049999,120]
[402941686,1769001771232,-189.35387511,0.00049999,120]
[402941687,1769001771312,-500.0,0.00049999,120]
[402941688,1769001771387,-500.0,0.00049999,120]
[402941689,1769001771468,-500.0,0.00049999,120]
[402941690,1769001771544,-607.81037014,0.00049999,120]
[402941691,1769001771620,-500.0,0.00049999,120]
[402941692,1769001771694,-500.0,0.00049999,120]
[402941693,1769001771772,-500.0,0.00049999,120]
[402941694,1769001771847,-500.0,0.00049999,120]
[402941695,1769001771918,-168.41460018,0.00049999,120]
[402941696,1769001771991,-500.0,0.00049999,120]
[402941697,1769001772065,-398.88797963,0.00049999,120]
[402941698,1769001772137,-500.0,0.00049999,120]
[402941699,1769001772211,-214.69631674,0.00049999,120]
[402941700,1769001772285,-500.0,0.00049999,120]
[402941701,1769001772356,-500.0,0.00049999,120]
[402941702,1769001772429,-500.0,0.00049999,120]
[402941703,1769001772502,-500.0,0.00049999,120]
[402941704,1769001772577,-500.0,0.00049999,120]
[402941705,1769001772653,-578.37458259,0.00049999,120]
[402941706,1769001772728,-500.0,0.00049999,120]
[402941707,1769001772803,-406.1141981,0.00049999,120]
[402941708,1769001772877,-357.28653816,0.00049999,120]
[402941709,1769001772964,-629.80054935,0.00049999,120]
[402941710,1769001773043,-500.0,0.00049999,120]
[402941711,1769001773120,-500.0,0.00049999,120]
[402941712,1769001773203,-500.0,0.00049999,120]
[402941713,1769001773288,-3952.39483807,0.0005,120]
[402941714,1769001773366,-150.0,0.0005,40]
[402941715,1769001773443,-1000.0,0.0005,120]
[402941716,1769001773526,-499999.99,0.0005,120]
[402941717,1769001773602,-680.00704553,0.0005,120]
[402941718,1769001773681,-200.0,0.0005,120]
[402941719,1769001773759,-31373.06,0.0005,120]
[402941720,1769001773839,-1000000.0,0.0005,120]
[402941721,1769001773921,-1000000.0,0.0005,120]
[402941722,1769001774002,-1000000.0,0.0005,120]
[402941723,1769001774085,-362827.76019735,0.0005,120]
[402941724,1769001774372,1352.75,0.0001605,2]
[402941725,1769001774913,-248.61363329,0.00016469,2]
[402941726,1769001776683,-205.73271156,0.00016469,2]
[402941727,1769001783461,211.1622962,0.00016369,2]
[402941728,1769001855282,-511.0,0.000197,31]
[402941729,1769001855371,-150.00140712,0.00025447,32]
[402941730,1769001855451,-150.00140712,0.00026707,36]
[402941731,1769001855536,-150.00140712,0.00027967,41]
[402941732,1769001855617,-511.0,0.00028314,35]
[402941733,1769001855699,-150.00140712,0.00029226,45]
[402941734,1769001855786,-150.00140712,0.00030486,50]
[402941735,1769001855867,-150.00140712,0.00031745,54]
[402941736,1769001855948,-150.00140712,0.00033005,59]
[402941737,1769001856031,-150.00140723,0.00034265,63]
[402941738,1769001856114,-161.01716565,0.00035524,68]
[402941739,1769001856193,-161.01716565,0.00036784,72]
[402941740,1769001856269,-511.0,0.00036929,39]
[402941741,1769001856348,-161.01716565,0.00038044,78]
[402941742,1769001856683,-161.01716565,0.00039303,86]
[402941743,1769001856761,-160.0,0.0004,120]
[402941744,1769001856839,-161.01716565,0.00040563,94]
[402941745,1769001856916,-160.0,0.000406,120]
[402941746,1769001856995,-151.0,0.00041095,60]
[402941747,1769001857069,-160.0,0.000411,120]
[402941748,1769001857149,-160.0,0.000417,120]
[402941749,1769001857226,-161.01716565,0.00041823,102]
[402941750,1769001857307,-200.0,0.00042023,120]
[402941751,1769001857384,-160.0,0.000422,120]
[402941752,1769001857466,-160.0,0.000428,120]
[402941753,1769001857551,-300.0,0.00043015,30]
[402941754,1769001857629,-300.0,0.00043015,30]
[402941755,1769001857705,-415.02855123,0.00043015,31]
[402941756,1769001857785,-152.60371884,0.00043016,30]
[402941757,1769001857861,-152.60371884,0.00043016,30]
[402941758,1769001857936,-152.60371884,0.00043016,30]
[402941759,1769001858033,-151.0,0.00043016,120]
[402941760,1769001858110,-151.0,0.00043016,120]
[402941761,1769001858186,-151.0,0.00043016,120]
[402941762,1769001858261,-151.0,0.00043016,120]
[402941763,1769001858338,-151.0,0.00043016,120]
[402941764,1769001858414,-151.0,0.00043016,120]
[402941765,1769001858492,-172.175422,0.00043016,120]
[402941766,1769001858570,-250.645554,0.00043016,120]
[402941767,1769001858648,-250.645554,0.00043016,120]
[402941768,1769001858731,-151.0,0.00043016,120]
[402941769,1769001858808,-250.645554,0.00043016,120]
[402941770,1769001858886,-151.0,0.00043016,120]
[402941771,1769001858967,-151.0,0.00043016,120]
[402941772,1769001859047,-250.645554,0.00043016,120]
[402941773,1769001859125,-151.0,0.00043016,120]
[402941774,1769001859204,-250.645554,0.00043016,120]
[402941775,1769001859285,-151.0,0.00043016,120]
[402941776,1769001859366,-250.645554,0.00043016,120]
[402941777,1769001859449,-250.645554,0.00043016,120]
[402941778,1769001859552,-151.0,0.00043016,120]
[402941779,1769001859649,-250.645554,0.00043016,120]
[402941780,1769001859728,-250.645554,0.00043016,120]
[402941781,1769001859809,-250.645554,0.00043016,120]
[402941782,1769001859886,-250.645554,0.00043016,120]
[402941783,1769001859963,-250.645554,0.00043016,120]
[402941784,1769001860043,-250.645554,0.00043016,120]
[402941785,1769001860122,-250.645554,0.00043016,120]
[402941786,1769001860202,-250.645554,0.00043016,120]
[402941787,1769001860283,-250.645554,0.00043016,120]
[402941788,1769001860365,-250.645554,0.00043016,120]
[402941789,1769001860442,-151.0,0.00043016,120]
[402941790,1769001860520,-250.645554,0.00043016,120]
[402941791,1769001860600,-239.567751,0.00043016,120]
[402941792,1769001860678,-250.645554,0.00043016,120]
[402941793,1769001860756,-250.645557,0.00043016,120]
[402941794,1769001860838,-161.01716565,0.00043082,110]
[402941795,1769001860914,-150.0,0.00043127,30]
[402941796,1769001860990,-150.0,0.00043127,30]
[402941797,1769001861066,-150.0,0.00043127,30]
[402941798,1769001861142,-160.0,0.000433,120]
[402941799,1769001861216,-200.0,0.00043465,120]
[402941800,1769001861294,-160.0,0.000439,120]
[402941801,1769001861375,-161.01716565,0.00044342,120]
[402941802,1769001861450,-160.0,0.000444,120]
[402941803,1769001861525,-150.0,0.00044469,120]
[402941804,1769001861604,-200.0,0.00044907,120]
[402941805,1769001861684,-46932.62,0.00045,120]
[402941806,1769001861761,-8007.45,0.00045,120]
[402941807,1769001861838,-160.0,0.00045,120]
[402941808,1769001861915,-160.0,0.000455,120]
[402941809,1769001861990,-511.0,0.00045543,43]
[402941810,1769001862066,-2378.69906494,0.00045602,120]
[402941811,1769001862139,-160.0,0.000461,120]
[402941812,1769001862214,-200.0,0.00046403,120]
[402941813,1769001862293,-160.0,0.000466,120]
[402941814,1769001862376,-3574.08,0.000468,120]
[402941815,1769001862451,-2378.69906494,0.00046861,120]
[402941816,1769001862528,-160.0,0.000472,120]
[402941817,1769001862608,-8007.45,0.0004725,120]
[402941818,1769001862685,-46932.62,0.0004725,120]
[402941819,1769001862760,-160.0,0.000477,120]
[402941820,1769001862835,-303.76846108,0.00047856,60]
[402941821,1769001862910,-246.747159,0.00047899,120]
[402941822,1769001862988,-2378.69906494,0.00048121,120]
[402941823,1769001863063,-160.0,0.000483,120]
[402941824,1769001863141,-292.28471425,0.00048334,60]
[402941825,1769001863225,-160.0,0.000488,120]
[402941826,1769001863306,-151.0,0.00048997,120]
[402941827,1769001863383,-150.0,0.00049,38]
[402941828,1769001863461,-229.02719,0.00049,120]
[402941829,1769001863541,-229.02719,0.000492,120]
[402941830,1769001863622,-1725.0,0.000492,120]
[402941831,1769001863699,-2086.25794308,0.000492,120]
[402941832,1769001863781,-2378.69906494,0.00049381,120]
[402941833,1769001864011,-229.0272,0.000494,120]
[402941834,1769001864093,-160.0,0.000494,120]
[402941835,1769001864172,-229.02719,0.000496,120]
[402941836,1769001864250,-8007.45,0.00049613,120]
[402941837,1769001864328,-46932.62,0.00049613,120]
[402941838,1769001864403,-229.02719,0.000498,120]
[402941839,1769001864480,-160.0,0.000499,120]
[402941840,1769001864556,-253.0,0.000499,66]
[402941841,1769001864635,-250.0,0.00049999,120]
[402941842,1769001864716,-250.0,0.00049999,120]
[402941843,1769001864797,-250.0,0.00049999,120]
[402941844,1769001864878,-250.0,0.00049999,120]
[402941845,1769001864959,-250.0,0.00049999,120]
[402941846,1769001865040,-250.0,0.00049999,120]
[402941847,1769001865116,-151.0,0.00049999,120]
[402941848,1769001865195,-414.0,0.00049999,120]
[402941849,1769001865272,-151.0,0.00049999,120]
[402941850,1769001865357,-250.0,0.00049999,120]
[402941851,1769001865434,-429.318,0.00049999,120]
[402941852,1769001865511,-151.0,0.00049999,120]
[402941853,1769001865586,-250.0,0.00049999,120]
[402941854,1769001865663,-445.202766,0.00049999,120]
[402941855,1769001865737,-150.0,0.00049999,120]
[402941856,1769001865814,-151.0,0.00049999,120]
[402941857,1769001865890,-250.0,0.00049999,120]
[402941858,1769001865970,-461.67526834,0.00049999,120]
[402941859,1769001866046,-151.0,0.00049999,120]
[402941860,1769001866126,-478.75725327,0.00049999,120]
[402941861,1769001866202,-250.0,0.00049999,120]
[402941862,1769001866276,-151.0,0.00049999,120]
[402941863,1769001866351,-250.57177377,0.00049999,120]
[402941864,1769001866426,-496.47127164,0.00049999,120]
[402941865,1769001866499,-250.0,0.00049999,120]
[402941866,1769001866578,-150.0,0.00049999,120]
[402941867,1769001866656,-151.0,0.00049999,120]
[402941868,1769001866729,-150.0,0.00049999,120]
[402941869,1769001866802,-150.0,0.00049999,120]
[402941870,1769001866876,-150.0,0.00049999,120]
[402941871,1769001866949,-231.58704903,0.00049999,120]
[402941872,1769001867022,-514.84070869,0.00049999,120]
[402941873,1769001867096,-250.0,0.00049999,120]
[402941874,1769001867174,-150.0,0.00049999,120]
[402941875,1769001867248,-242.53853878,0.00049999,120]
[402941876,1769001867322,-150.0,0.00049999,120]
[402941877,1769001867395,-151.0,0.00049999,120]
[402941878,1769001867468,-200.0,0.00049999,120]
[402941879,1769001867540,-150.0,0.00049999,120]
[402941880,1769001867615,-533.88981491,0.00049999,120]
[402941881,1769001867695,-250.0,0.00049999,120]
[402941882,1769001867775,-152.12222658,0.00049999,120]
[402941883,1769001867853,-150.0,0.00049999,120]
[402941884,1769001867929,-150.0,0.00049999,120]
[402941885,1769001868003,-151.0,0.00049999,120]
[402941886,1769001868078,-292.0,0.00049999,120]
[402941887,1769001868152,-553.64373807,0.00049999,120]
[402941888,1769001868228,-152.84284681,0.00049999,120]
[402941889,1769001868306,-250.0,0.00049999,120]
[402941890,1769001868379,-151.0,0.00049999,120]
[402941891,1769001868464,-150.0,0.00049999,120]
[402941892,1769001868543,-574.12855637,0.00049999,120]
[402941893,1769001868618,-150.0,0.00049999,120]
[402941894,1769001868695,-216.07295226,0.00049999,120]
[402941895,1769001868771,-150.0,0.00049999,120]
[402941896,1769001868845,-200.0,0.00049999,120]
[402941897,1769001868921,-151.0,0.00049999,120]
[402941898,1769001868999,-548.92174121,0.00049999,120]
[402941899,1769001869073,-150.0,0.00049999,120]
[402941900,1769001869146,-150.0,0.00049999,120]
[402941901,1769001869222,-150.0,0.00049999,120]
[402941902,1769001869297,-224.73746907,0.00049999,120]
[402941903,1769001869369,-200.49238854,0.00049999,120]
[402941904,1769001869444,-150.0,0.00049999,120]
[402941905,1769001869523,-150.0,0.00049999,120]
[402941906,1769001869605,-150.0,0.00049999,120]
[402941907,1769001869679,-235.06380015,0.00049999,120]
[402941908,1769001869755,-150.0,0.00049999,120]
[402941909,1769001869829,-150.0,0.00049999,120]
[402941910,1769001869905,-150.0,0.00049999,120]
[402941911,1769001869979,-150.0,0.00049999,120]
[402941912,1769001870052,-205.76176181,0.00049999,120]
[402941913,1769001870125,-272.78307317,0.00049999,120]
[402941914,1769001870208,-159.3784323,0.00049999,120]
[402941915,1769001870282,-421.0,0.00049999,120]
[402941916,1769001870361,-151.0,0.00049999,120]
[402941917,1769001870435,-250.0,0.00049999,120]
[402941918,1769001870512,-300.0,0.00049999,120]
[402941919,1769001870589,-474.77587291,0.00049999,120]
[402941920,1769001870666,-250.0,0.00049999,120]
[402941921,1769001870744,-311.1,0.00049999,120]
[402941922,1769001870819,-250.0,0.00049999,120]
[402941923,1769001870893,-322.6107,0.00049999,120]
[402941924,1769001870966,-347.24778343,0.00049999,120]
[402941925,1769001871041,-250.0,0.00049999,120]
[402941926,1769001871113,-334.5472959,0.00049999,120]
[402941927,1769001871398,-250.0,0.00049999,120]
[402941928,1769001871473,-276.5527041,0.00049999,120]
[402941929,1769001871550,-421.0,0.00049999,120]
[402941930,1769001871628,-250.0,0.00049999,120]
[402941931,1769001871704,-421.0,0.00049999,120]
[402941932,1769001871778,-421.0,0.00049999,120]
[402941933,1769001871852,-421.0,0.00049999,120]
[402941934,1769001871927,-421.0,0.00049999,120]
[402941935,1769001872001,-151.0,0.00049999,120]
[402941936,1769001872075,-250.0,0.00049999,120]
[402941937,1769001872152,-421.0,0.00049999,120]
[402941938,1769001872224,-421.0,0.00049999,120]
[402941939,1769001872301,-151.0,0.00049999,120]
[402941940,1769001872373,-421.0,0.00049999,120]
[402941941,1769001872449,-421.0,0.00049999,120]
[402941942,1769001872526,-421.0,0.00049999,120]
[402941943,1769001872612,-151.0,0.00049999,120]
[402941944,1769001872689,-421.0,0.00049999,120]
[402941945,1769001872763,-421.0,0.00049999,120]
[402941946,1769001872838,-300.0,0.00049999,120]
[402941947,1769001872913,-421.0,0.00049999,120]
[402941948,1769001872989,-151.0,0.00049999,120]
[402941949,1769001873064,-151.0,0.00049999,120]
[402941950,1769001873138,-421.0,0.00049999,120]
[402941951,1769001873210,-421.0,0.00049999,120]
[402941952,1769001873284,-311.1,0.00049999,120]
[402941953,1769001873363,-421.0,0.00049999,120]
[402941954,1769001873442,-151.0,0.00049999,120]
[402941955,1769001873518,-421.0,0.00049999,120]
[402941956,1769001873598,-151.0,0.00049999,120]
[402941957,1769001873673,-151.0,0.00049999,40]
[402941958,1769001873751,-421.0,0.00049999,120]
[402941959,1769001873827,-421.0,0.00049999,120]
[402941960,1769001873903,-322.6107,0.00049999,120]
[402941961,1769001873978,-421.0,0.00049999,120]
[402941962,1769001874052,-421.0,0.00049999,120]
[402941963,1769001874127,-151.0,0.00049999,40]
[402941964,1769001874203,-421.0,0.00049999,120]
[402941965,1769001874278,-210.89861091,0.00049999,120]
[402941966,1769001874355,-151.0,0.00049999,120]
[402941967,1769001874432,-151.0,0.00049999,40]
[402941968,1769001874511,-151.0,0.00049999,120]
[402941969,1769001874590,-422.74170161,0.00049999,120]
[402941970,1769001874665,-151.0,0.00049999,40]
[402941971,1769001874743,-151.0,0.00049999,120]
[402941972,1769001874820,-151.0,0.00049999,40]
[402941973,1769001874895,-151.0,0.00049999,120]
[402941974,1769001874966,-151.0,0.00049999,40]
[402941975,1769001875047,-637172.23980265,0.0005,120]
[402941976,1769001875124,-344.97205433,0.0005,120]
[402941977,1769001875198,-2500.0,0.0005,30]
[402941978,1769001875265,-150.0,0.0005,90]
[402941979,1769001875335,-172.89429177,0.0005,120]
[402941980,1769001875408,-1371.22726725,0.0005,120]
[402941981,1769001875478,-1088.60788057,0.0005,120]
[402941982,1769001875551,-225.73544513,0.0005,120]
[402941983,1769001875624,-500.0,0.0005,30]
[402941984,1769001875696,-200.0,0.0005,120]
[402941985,1769001875772,-160.507151,0.0005,120]
[402941986,1769001875845,-2978.73562362,0.0005,120]
[402941987,1769001875919,-477.08329125,0.0005,120]
[402941988,1769001875992,-3641.39,0.0005,120]
[402941989,1769001876065,-927.3518559,0.0005,120]
[402941990,1769001876137,-200.0,0.0005,120]
[402941991,1769001876211,-5027.25429847,0.0005,120]
[402941992,1769001876287,-39554.81,0.0005,120]